[Event "Titled Tuesday Blitz May 23 Early 2023"]
[White "Miranda, Rafael"]
[Black "Harsh Suresh"]
[WhiteFideId "130990"]
[BlackFideId "45018464"]
[WhiteElo "2204"]
[BlackElo "2209"]
[Result "1-0"]
[Round "05"]
[TimeControl "180+2"]
[Date "2023.05.23"]
[WhiteClock "0:00:20"]
[BlackClock "0:00:10"]

1. e4 {[%clk 0:03:00]}  c6 {[%clk 0:02:55]} 2. d4 {[%clk 0:03:00]}  d5 {[%clk 0:02:55]} 3. e5 {[%clk 0:03:00]}  c5 {[%clk 0:02:55]} 4. dxc5 {[%clk 0:02:59]}  e6 {[%clk 0:02:56]} 5. Nf3 {[%clk 0:02:56]}  Bxc5 {[%clk 0:02:53]} 6. Bd3 {[%clk 0:02:56]}  Nc6 {[%clk 0:02:44]} 7. O-O {[%clk 0:02:56]}  Nge7 {[%clk 0:02:43]} 8. Nbd2 {[%clk 0:02:50]}  Qc7 {[%clk 0:02:12]} 9. Nb3 {[%clk 0:02:50]}  Bb6 {[%clk 0:02:11]} 10. Re1 {[%clk 0:02:49]}  Bd7 {[%clk 0:02:06]} 11. c3 {[%clk 0:02:48]}  Ng6 {[%clk 0:02:03]} 12. Bxg6 {[%clk 0:02:42]}  hxg6 {[%clk 0:02:04]} 13. Be3 {[%clk 0:02:41]}  Bxe3 {[%clk 0:01:59]} 14. Rxe3 {[%clk 0:02:41]}  Ne7 {[%clk 0:01:55]} 15. Nbd4 {[%clk 0:02:39]}  Nf5 {[%clk 0:01:55]} 16. Re2 {[%clk 0:02:37]}  Qb6 {[%clk 0:01:55]} 17. Qb3 {[%clk 0:02:35]}  Qxb3 {[%clk 0:01:50]} 18. axb3 {[%clk 0:02:35]}  a6 {[%clk 0:01:49]} 19. b4 {[%clk 0:02:29]}  Ke7 {[%clk 0:01:49]} 20. g3 {[%clk 0:02:23]}  b6 {[%clk 0:01:44]} 21. Ree1 {[%clk 0:02:14]}  a5 {[%clk 0:01:41]} 22. bxa5 {[%clk 0:02:14]}  bxa5 {[%clk 0:01:42]} 23. Ra2 {[%clk 0:02:14]}  Rhb8 {[%clk 0:01:40]} 24. Rea1 {[%clk 0:02:13]}  a4 {[%clk 0:01:40]} 25. b3 {[%clk 0:01:47]}  axb3 {[%clk 0:01:17]} 26. Rxa8 {[%clk 0:01:46]}  b2 {[%clk 0:01:18]} 27. Nc6+ {[%clk 0:00:57]}  Bxc6 {[%clk 0:01:15]} 28. R1a7+ {[%clk 0:00:58]}  Rb7 {[%clk 0:00:23]} 29. Nd2 {[%clk 0:00:54]}  Kd7 {[%clk 0:00:13]} 30. Rxb7+ {[%clk 0:00:54]}  Bxb7 {[%clk 0:00:14]} 31. Ra2 {[%clk 0:00:54]}  d4 {[%clk 0:00:11]} 32. cxd4 {[%clk 0:00:38]}  Nxd4 {[%clk 0:00:12]} 33. Rxb2 {[%clk 0:00:38]}  Bd5 {[%clk 0:00:13]} 34. f4 {[%clk 0:00:37]}  f6 {[%clk 0:00:10]} 35. exf6 {[%clk 0:00:32]}  gxf6 {[%clk 0:00:11]} 36. Kf2 {[%clk 0:00:32]}  e5 {[%clk 0:00:10]} 37. fxe5 {[%clk 0:00:32]}  fxe5 {[%clk 0:00:11]} 38. h4 {[%clk 0:00:31]}  Ke6 {[%clk 0:00:11]} 39. Rb6+ {[%clk 0:00:31]}  Kf5 {[%clk 0:00:11]} 40. Nf1 {[%clk 0:00:30]}  Be6 {[%clk 0:00:07]} 41. Ne3+ {[%clk 0:00:28]}  Ke4 {[%clk 0:00:08]} 42. Rb4 {[%clk 0:00:23]}  Kd3 {[%clk 0:00:06]} 43. g4 {[%clk 0:00:20]}  Ke4 {[%clk 0:00:05]} 44. h5 {[%clk 0:00:20]}  gxh5 {[%clk 0:00:03]} 45. gxh5 {[%clk 0:00:21]}  Bg8 {[%clk 0:00:03]} 46. Rb8 {[%clk 0:00:21]}  Bh7 {[%clk 0:00:02]} 47. Rb7 {[%clk 0:00:21]}  Bg8 {[%clk 0:00:03]} 48. Rg7 {[%clk 0:00:20]}  Be6 {[%clk 0:00:01]} 49. h6 {[%clk 0:00:19]}  Nf5 {[%clk 0:00:02]} 50. Nxf5 {[%clk 0:00:17]}  Bxf5 {[%clk 0:00:02]} 51. h7 {[%clk 0:00:17]}  Bxh7 {[%clk 0:00:03]} 52. Rxh7 {[%clk 0:00:18]}  Kd3 {[%clk 0:00:03]} 53. Ke1 {[%clk 0:00:19]}  e4 {[%clk 0:00:04]} 54. Rh3+ {[%clk 0:00:19]}  e3 {[%clk 0:00:04]} 55. Rg3 {[%clk 0:00:20]}  Ke4 {[%clk 0:00:05]} 56. Ke2 {[%clk 0:00:20]}  Kf4 {[%clk 0:00:06]} 57. Rxe3 {[%clk 0:00:21]}  Kg4 {[%clk 0:00:06]} 58. Rf3 {[%clk 0:00:21]}  Kg5 {[%clk 0:00:07]} 59. Ke3 {[%clk 0:00:22]}  Kg4 {[%clk 0:00:08]} 60. Ke4 {[%clk 0:00:23]}  Kg5 {[%clk 0:00:08]} 61. Ke5 {[%clk 0:00:22]}  Kg4 {[%clk 0:00:09]} 62. Re3 {[%clk 0:00:22]}  Kh4 {[%clk 0:00:09]} 63. Kf5 {[%clk 0:00:21]}  Kh5 {[%clk 0:00:10]} 64. Rh3# {[%clk 0:00:20]} 1-0


[Site "https://www.chess.com"]

[Event "Titled Tuesday Blitz May 23 Early 2023"]
[White "Melian, Juan Sebastian"]
[Black "Kilic, Eray"]
[WhiteFideId "3706575"]
[BlackFideId "44517173"]
[WhiteElo "2092"]
[BlackElo "2328"]
[Result "0-1"]
[Round "05"]
[TimeControl "180+2"]
[Date "2023.05.23"]
[WhiteClock "0:00:03"]
[BlackClock "0:00:38"]

1. d4 {[%clk 0:02:58]}  Nf6 {[%clk 0:02:59]} 2. c4 {[%clk 0:02:57]}  g6 {[%clk 0:02:56]} 3. Nc3 {[%clk 0:02:48]}  d5 {[%clk 0:02:56]} 4. e3 {[%clk 0:02:33]}  Bg7 {[%clk 0:02:55]} 5. Qb3 {[%clk 0:02:32]}  dxc4 {[%clk 0:02:53]} 6. Bxc4 {[%clk 0:02:32]}  O-O {[%clk 0:02:53]} 7. Nf3 {[%clk 0:02:32]}  Nc6 {[%clk 0:02:47]} 8. Qc2 {[%clk 0:02:12]}  Bf5 {[%clk 0:02:17]} 9. Qe2 {[%clk 0:02:05]}  a6 {[%clk 0:02:08]} 10. O-O {[%clk 0:02:04]}  b5 {[%clk 0:02:03]} 11. Bb3 {[%clk 0:01:47]}  Ne4 {[%clk 0:01:32]} 12. Nxe4 {[%clk 0:01:34]}  Bxe4 {[%clk 0:01:33]} 13. Bd2 {[%clk 0:01:35]}  e5 {[%clk 0:01:30]} 14. Bc3 {[%clk 0:00:23]}  b4 {[%clk 0:01:24]} 15. Be1 {[%clk 0:00:04]}  exd4 {[%clk 0:01:24]} 16. Nxd4 {[%clk 0:00:03]}  Nxd4 {[%clk 0:01:13]} 17. exd4 {[%clk 0:00:04]}  Re8 {[%clk 0:01:05]} 18. Qd2 {[%clk 0:00:01]}  Qxd4 {[%clk 0:01:03]} 19. Qxb4 {[%clk 0:00:01]}  Qxb2 {[%clk 0:00:58]} 20. Rd1 {[%clk 0:00:01]}  Bf5 {[%clk 0:00:46]} 21. Bd2 {[%clk 0:00:01]}  Rab8 {[%clk 0:00:45]} 22. Qc5 {[%clk 0:00:02]}  Be5 {[%clk 0:00:42]} 23. Be3 {[%clk 0:00:01]}  Bd6 {[%clk 0:00:40]} 24. Qc4 {[%clk 0:00:02]}  Be6 {[%clk 0:00:39]} 25. Qxa6 {[%clk 0:00:02]}  Bxb3 {[%clk 0:00:38]} 26. axb3 {[%clk 0:00:03]}  Qxb3 {[%clk 0:00:38]} 27. Bd4 {[%clk 0:00:03]}  Qe6 {[%clk 0:00:37]} 28. Qc6 {[%clk 0:00:03]}  Bxh2+ {[%clk 0:00:37]} 29. Kxh2 {[%clk 0:00:03]}  Qxc6 {[%clk 0:00:38]} 0-1


[Site "https://www.chess.com"]

[Event "Titled Tuesday Blitz May 23 Early 2023"]
[White "Jaracz, Pawel"]
[Black "Garv Gaur"]
[WhiteFideId "1102222"]
[BlackFideId "45030839"]
[WhiteElo "2438"]
[BlackElo "2068"]
[Result "0-1"]
[Round "05"]
[TimeControl "180+2"]
[Date "2023.05.23"]
[WhiteClock "0:00:01"]
[BlackClock "0:00:58"]

1. e4 {[%clk 0:02:55]}  g6 {[%clk 0:02:58]} 2. d4 {[%clk 0:02:55]}  Bg7 {[%clk 0:02:58]} 3. Nc3 {[%clk 0:02:55]}  d5 {[%clk 0:02:54]} 4. exd5 {[%clk 0:02:54]}  Nf6 {[%clk 0:02:54]} 5. Bb5+ {[%clk 0:02:53]}  Nbd7 {[%clk 0:02:53]} 6. Qf3 {[%clk 0:02:48]}  O-O {[%clk 0:02:52]} 7. Nge2 {[%clk 0:02:48]}  Nb6 {[%clk 0:02:52]} 8. Nf4 {[%clk 0:02:46]}  Bg4 {[%clk 0:02:51]} 9. Qg3 {[%clk 0:02:44]}  Bf5 {[%clk 0:02:51]} 10. Bd3 {[%clk 0:02:24]}  Bxd3 {[%clk 0:02:49]} 11. Nxd3 {[%clk 0:02:19]}  Nbxd5 {[%clk 0:02:47]} 12. Nxd5 {[%clk 0:02:18]}  Qxd5 {[%clk 0:02:42]} 13. c3 {[%clk 0:02:18]}  Rac8 {[%clk 0:02:24]} 14. O-O {[%clk 0:02:16]}  Ne4 {[%clk 0:02:24]} 15. Qf3 {[%clk 0:02:11]}  Nf6 {[%clk 0:02:15]} 16. Qxd5 {[%clk 0:01:44]}  Nxd5 {[%clk 0:02:16]} 17. Re1 {[%clk 0:01:44]}  e6 {[%clk 0:02:15]} 18. a4 {[%clk 0:01:40]}  a5 {[%clk 0:02:09]} 19. Bg5 {[%clk 0:01:33]}  h6 {[%clk 0:02:06]} 20. Bh4 {[%clk 0:01:33]}  g5 {[%clk 0:02:01]} 21. Bg3 {[%clk 0:01:33]}  Rfd8 {[%clk 0:02:02]} 22. Rad1 {[%clk 0:01:26]}  Ne7 {[%clk 0:02:02]} 23. Be5 {[%clk 0:01:19]}  Nf5 {[%clk 0:02:01]} 24. h3 {[%clk 0:01:14]}  Rd5 {[%clk 0:01:55]} 25. Bh2 {[%clk 0:01:05]}  c6 {[%clk 0:01:48]} 26. Ra1 {[%clk 0:00:43]}  b6 {[%clk 0:01:33]} 27. Re2 {[%clk 0:00:34]}  c5 {[%clk 0:01:29]} 28. Rc2 {[%clk 0:00:21]}  cxd4 {[%clk 0:01:28]} 29. c4 {[%clk 0:00:21]}  Rdd8 {[%clk 0:01:24]} 30. Re1 {[%clk 0:00:20]}  Nd6 {[%clk 0:01:24]} 31. b3 {[%clk 0:00:20]}  Nb7 {[%clk 0:01:25]} 32. Be5 {[%clk 0:00:13]}  Nc5 {[%clk 0:01:22]} 33. Nxc5 {[%clk 0:00:13]}  bxc5 {[%clk 0:01:22]} 34. Bxg7 {[%clk 0:00:13]}  Kxg7 {[%clk 0:01:22]} 35. Rd2 {[%clk 0:00:13]}  Kf6 {[%clk 0:01:21]} 36. g4 {[%clk 0:00:11]}  Rb8 {[%clk 0:01:21]} 37. Rd3 {[%clk 0:00:11]}  Rb4 {[%clk 0:01:20]} 38. f4 {[%clk 0:00:09]}  Rdb8 {[%clk 0:01:19]} 39. fxg5+ {[%clk 0:00:07]}  hxg5 {[%clk 0:01:18]} 40. Rf1+ {[%clk 0:00:07]}  Kg6 {[%clk 0:01:16]} 41. Rdf3 {[%clk 0:00:07]}  R8b7 {[%clk 0:01:15]} 42. Re1 {[%clk 0:00:03]}  Rxb3 {[%clk 0:01:13]} 43. Rxb3 {[%clk 0:00:04]}  Rxb3 {[%clk 0:01:14]} 44. Re5 {[%clk 0:00:05]}  Rb4 {[%clk 0:01:04]} 45. Rxc5 {[%clk 0:00:05]}  Rxa4 {[%clk 0:01:04]} 46. Kf2 {[%clk 0:00:05]}  Ra3 {[%clk 0:01:03]} 47. Ke2 {[%clk 0:00:04]}  Rxh3 {[%clk 0:01:02]} 48. Rxa5 {[%clk 0:00:03]}  Rc3 {[%clk 0:01:02]} 49. c5 {[%clk 0:00:03]}  f6 {[%clk 0:00:58]} 50. Kd2 {[%clk 0:00:03]}  e5 {[%clk 0:00:59]} 51. Ke2 {[%clk 0:00:01]}  e4 {[%clk 0:00:59]} 52. Kd2 {[%clk 0:00:02]}  e3+ {[%clk 0:00:58]} 53. Ke2 {[%clk 0:00:02]}  Rc2+ {[%clk 0:00:59]} 54. Kf3 {[%clk 0:00:02]}  Rf2+ {[%clk 0:00:56]} 55. Ke4 {[%clk 0:00:02]}  e2 {[%clk 0:00:57]} 56. Ra1 {[%clk 0:00:01]}  Rf1 {[%clk 0:00:58]} 0-1


[Site "https://www.chess.com"]

[Event "Titled Tuesday Blitz May 23 Early 2023"]
[White "Degenbaev, Aziz"]
[Black "Zemlyanskii, Ivan"]
[WhiteFideId "13802640"]
[BlackFideId "24249971"]
[WhiteElo "2152"]
[BlackElo "2421"]
[Result "0-1"]
[Round "05"]
[TimeControl "180+2"]
[Date "2023.05.23"]
[WhiteClock "0:00:00"]
[BlackClock "0:00:05"]

1. e4 {[%clk 0:02:18]}  c5 {[%clk 0:02:56]} 2. Nf3 {[%clk 0:02:17]}  e6 {[%clk 0:02:57]} 3. d4 {[%clk 0:02:18]}  cxd4 {[%clk 0:02:58]} 4. Nxd4 {[%clk 0:02:19]}  Nf6 {[%clk 0:02:59]} 5. Nc3 {[%clk 0:02:18]}  Nc6 {[%clk 0:02:59]} 6. a3 {[%clk 0:02:18]}  d6 {[%clk 0:02:53]} 7. Be3 {[%clk 0:02:10]}  Be7 {[%clk 0:02:52]} 8. f4 {[%clk 0:02:08]}  O-O {[%clk 0:02:48]} 9. Nxc6 {[%clk 0:02:04]}  bxc6 {[%clk 0:02:48]} 10. Qf3 {[%clk 0:02:05]}  e5 {[%clk 0:02:08]} 11. f5 {[%clk 0:01:53]}  d5 {[%clk 0:02:07]} 12. O-O-O {[%clk 0:01:50]}  d4 {[%clk 0:02:04]} 13. Nb1 {[%clk 0:01:06]}  Qb6 {[%clk 0:01:39]} 14. Bf2 {[%clk 0:00:52]}  Rb8 {[%clk 0:01:33]} 15. b3 {[%clk 0:00:52]}  a5 {[%clk 0:01:28]} 16. a4 {[%clk 0:00:49]}  Nd7 {[%clk 0:01:18]} 17. h4 {[%clk 0:00:40]}  Nc5 {[%clk 0:01:12]} 18. g4 {[%clk 0:00:34]}  Nxa4 {[%clk 0:01:04]} 19. g5 {[%clk 0:00:25]}  Nc5 {[%clk 0:00:50]} 20. f6 {[%clk 0:00:24]}  Bd8 {[%clk 0:00:44]} 21. fxg7 {[%clk 0:00:24]}  Re8 {[%clk 0:00:45]} 22. Bc4 {[%clk 0:00:23]}  Be6 {[%clk 0:00:40]} 23. Bxe6 {[%clk 0:00:21]}  Rxe6 {[%clk 0:00:38]} 24. Rhf1 {[%clk 0:00:14]}  Rb7 {[%clk 0:00:34]} 25. Na3 {[%clk 0:00:09]}  a4 {[%clk 0:00:23]} 26. Nc4 {[%clk 0:00:08]}  Qb4 {[%clk 0:00:23]} 27. Bxd4 {[%clk 0:00:07]}  exd4 {[%clk 0:00:13]} 28. Rxd4 {[%clk 0:00:07]}  Re8 {[%clk 0:00:11]} 29. Nd6 {[%clk 0:00:04]}  Qxd4 {[%clk 0:00:10]} 30. Nxb7 {[%clk 0:00:04]}  Re7 {[%clk 0:00:06]} 31. Nxc5 {[%clk 0:00:03]}  Qxc5 {[%clk 0:00:07]} 32. Qd3 {[%clk 0:00:03]}  Bc7 {[%clk 0:00:06]} 33. Qa6 {[%clk 0:00:01]}  Kxg7 {[%clk 0:00:06]} 34. h5 {[%clk 0:00:01]}  Qxg5+ {[%clk 0:00:06]} 35. Kb1 {[%clk 0:00:02]}  axb3 {[%clk 0:00:06]} 36. cxb3 {[%clk 0:00:01]}  Qg2 {[%clk 0:00:05]} 37. Qc4 {[%clk 0:00:00]}  Be5 {[%clk 0:00:05]} 0-1


[Site "https://www.chess.com"]

[Event "Titled Tuesday Blitz May 23 Early 2023"]
[White "Wagner, Dennis"]
[Black "Liu, Casper"]
[WhiteFideId "24650684"]
[BlackFideId "1454153"]
[WhiteElo "2478"]
[BlackElo "2221"]
[Result "0-1"]
[Round "05"]
[TimeControl "180+2"]
[Date "2023.05.23"]
[WhiteClock "0:00:03"]
[BlackClock "0:00:24"]

1. e4 {[%clk 0:02:56]}  c5 {[%clk 0:03:00]} 2. Nf3 {[%clk 0:02:56]}  d6 {[%clk 0:03:00]} 3. Bb5+ {[%clk 0:02:57]}  Bd7 {[%clk 0:02:59]} 4. c4 {[%clk 0:02:53]}  g6 {[%clk 0:02:58]} 5. d4 {[%clk 0:02:52]}  cxd4 {[%clk 0:02:58]} 6. Nxd4 {[%clk 0:02:53]}  Bg7 {[%clk 0:02:58]} 7. Nc3 {[%clk 0:02:53]}  Nf6 {[%clk 0:02:58]} 8. Be3 {[%clk 0:02:53]}  O-O {[%clk 0:02:58]} 9. Bxd7 {[%clk 0:02:50]}  Qxd7 {[%clk 0:02:58]} 10. h3 {[%clk 0:02:49]}  Nc6 {[%clk 0:02:57]} 11. O-O {[%clk 0:02:49]}  a6 {[%clk 0:02:56]} 12. Rc1 {[%clk 0:02:48]}  Rfc8 {[%clk 0:02:54]} 13. Na4 {[%clk 0:02:05]}  Qd8 {[%clk 0:02:40]} 14. Nxc6 {[%clk 0:01:49]}  Rxc6 {[%clk 0:02:38]} 15. Qd3 {[%clk 0:01:50]}  Rac8 {[%clk 0:02:37]} 16. b3 {[%clk 0:01:48]}  Qa5 {[%clk 0:02:32]} 17. Nc3 {[%clk 0:01:38]}  b5 {[%clk 0:02:30]} 18. cxb5 {[%clk 0:00:49]}  Rxc3 {[%clk 0:02:28]} 19. Bd2 {[%clk 0:00:50]}  Nd7 {[%clk 0:01:29]} 20. Bxc3 {[%clk 0:00:49]}  Bxc3 {[%clk 0:01:16]} 21. bxa6 {[%clk 0:00:49]}  Ne5 {[%clk 0:01:17]} 22. Qe2 {[%clk 0:00:46]}  Rc6 {[%clk 0:01:09]} 23. Rc2 {[%clk 0:00:41]}  Bd4 {[%clk 0:00:59]} 24. Rxc6 {[%clk 0:00:40]}  Nxc6 {[%clk 0:01:00]} 25. Qc4 {[%clk 0:00:39]}  Bc5 {[%clk 0:00:57]} 26. Rc1 {[%clk 0:00:20]}  Nb4 {[%clk 0:00:57]} 27. a4 {[%clk 0:00:12]}  Nxa6 {[%clk 0:00:55]} 28. Qb5 {[%clk 0:00:11]}  Qd2 {[%clk 0:00:51]} 29. Rf1 {[%clk 0:00:12]}  Nb4 {[%clk 0:00:49]} 30. a5 {[%clk 0:00:11]}  Nd3 {[%clk 0:00:49]} 31. a6 {[%clk 0:00:11]}  Nxf2 {[%clk 0:00:40]} 32. Kh2 {[%clk 0:00:06]}  Qf4+ {[%clk 0:00:40]} 33. g3 {[%clk 0:00:06]}  Qd2 {[%clk 0:00:29]} 34. Qb8+ {[%clk 0:00:02]}  Kg7 {[%clk 0:00:29]} 35. Kg2 {[%clk 0:00:02]}  Ng4+ {[%clk 0:00:28]} 36. Kf3 {[%clk 0:00:03]}  Nh2# {[%clk 0:00:24]} 0-1


[Site "https://www.chess.com"]

[Event "Titled Tuesday Blitz May 23 Early 2023"]
[White "Turzo, Attila"]
[Black "Papasimakopoulos, Alexandros"]
[WhiteFideId "704954"]
[BlackFideId "4244125"]
[WhiteElo "2496"]
[BlackElo "2359"]
[Result "0-1"]
[Round "05"]
[TimeControl "180+2"]
[Date "2023.05.23"]
[WhiteClock "0:00:00"]
[BlackClock "0:00:08"]

1. d4 {[%clk 0:03:00]}  e6 {[%clk 0:02:55]} 2. c4 {[%clk 0:03:00]}  Nf6 {[%clk 0:02:51]} 3. g3 {[%clk 0:02:59]}  Bb4+ {[%clk 0:02:50]} 4. Bd2 {[%clk 0:02:59]}  Be7 {[%clk 0:02:50]} 5. Bg2 {[%clk 0:02:58]}  d5 {[%clk 0:02:51]} 6. Nf3 {[%clk 0:02:57]}  O-O {[%clk 0:02:49]} 7. O-O {[%clk 0:02:54]}  Ne4 {[%clk 0:02:50]} 8. Qc2 {[%clk 0:02:52]}  c6 {[%clk 0:02:49]} 9. Rd1 {[%clk 0:02:52]}  f5 {[%clk 0:02:49]} 10. Be1 {[%clk 0:02:51]}  Nd7 {[%clk 0:02:48]} 11. Nbd2 {[%clk 0:02:51]}  Bf6 {[%clk 0:02:41]} 12. Rac1 {[%clk 0:02:51]}  g5 {[%clk 0:02:39]} 13. Nb3 {[%clk 0:02:35]}  g4 {[%clk 0:02:36]} 14. Nfd2 {[%clk 0:02:35]}  Bg5 {[%clk 0:02:37]} 15. e3 {[%clk 0:02:35]}  Ndf6 {[%clk 0:02:35]} 16. Nc5 {[%clk 0:02:25]}  h5 {[%clk 0:02:31]} 17. Nd3 {[%clk 0:02:08]}  h4 {[%clk 0:02:31]} 18. Nf4 {[%clk 0:02:07]}  hxg3 {[%clk 0:02:26]} 19. hxg3 {[%clk 0:02:05]}  Qd7 {[%clk 0:02:14]} 20. b4 {[%clk 0:01:54]}  a6 {[%clk 0:02:09]} 21. a4 {[%clk 0:01:49]}  Qh7 {[%clk 0:02:06]} 22. cxd5 {[%clk 0:01:46]}  exd5 {[%clk 0:02:03]} 23. b5 {[%clk 0:01:44]}  axb5 {[%clk 0:02:03]} 24. axb5 {[%clk 0:01:44]}  Bd7 {[%clk 0:02:03]} 25. Nxe4 {[%clk 0:01:27]}  Nxe4 {[%clk 0:01:57]} 26. bxc6 {[%clk 0:01:28]}  bxc6 {[%clk 0:01:55]} 27. Ra1 {[%clk 0:01:13]}  Bxf4 {[%clk 0:01:22]} 28. exf4 {[%clk 0:01:11]}  Qg7 {[%clk 0:01:15]} 29. Qb2 {[%clk 0:01:00]}  Rab8 {[%clk 0:01:13]} 30. Qa3 {[%clk 0:00:53]}  Be6 {[%clk 0:01:00]} 31. Bxe4 {[%clk 0:00:43]}  dxe4 {[%clk 0:00:55]} 32. Qd6 {[%clk 0:00:33]}  Bd5 {[%clk 0:00:52]} 33. Bd2 {[%clk 0:00:25]}  e3 {[%clk 0:00:52]} 34. Bxe3 {[%clk 0:00:23]}  Rbd8 {[%clk 0:00:43]} 35. Qe5 {[%clk 0:00:15]}  Qh6 {[%clk 0:00:35]} 36. Kf1 {[%clk 0:00:15]}  Rde8 {[%clk 0:00:32]} 37. Qc7 {[%clk 0:00:13]}  Rf7 {[%clk 0:00:26]} 38. Qb6 {[%clk 0:00:07]}  Bf3 {[%clk 0:00:26]} 39. Ke1 {[%clk 0:00:07]}  Bxd1 {[%clk 0:00:15]} 40. Rxd1 {[%clk 0:00:08]}  Qe6 {[%clk 0:00:14]} 41. Kf1 {[%clk 0:00:07]}  Qd5 {[%clk 0:00:14]} 42. Qc5 {[%clk 0:00:06]}  Qh1+ {[%clk 0:00:13]} 43. Ke2 {[%clk 0:00:06]}  Qf3+ {[%clk 0:00:14]} 44. Kd2 {[%clk 0:00:06]}  Rb7 {[%clk 0:00:12]} 45. Qc4+ {[%clk 0:00:02]}  Kg7 {[%clk 0:00:13]} 46. Rc1 {[%clk 0:00:01]}  Rb2+ {[%clk 0:00:12]} 47. Rc2 {[%clk 0:00:02]}  Rxc2+ {[%clk 0:00:11]} 48. Kxc2 {[%clk 0:00:03]}  Qe4+ {[%clk 0:00:09]} 49. Kd2 {[%clk 0:00:02]}  Qd5 {[%clk 0:00:10]} 50. Qa6 {[%clk 0:00:01]}  Re7 {[%clk 0:00:10]} 51. Qa8 {[%clk 0:00:02]}  Rd7 {[%clk 0:00:08]} 52. Qe8 {[%clk 0:00:00]}  c5 {[%clk 0:00:08]} 0-1


[Site "https://www.chess.com"]

[Event "Titled Tuesday Blitz May 23 Early 2023"]
[White "Garakov, Mikhael"]
[Black "Nazari, Arad"]
[WhiteFideId "4169034"]
[BlackFideId "12577324"]
[WhiteElo "2347"]
[BlackElo "2175"]
[Result "0-1"]
[Round "05"]
[TimeControl "180+2"]
[Date "2023.05.23"]
[WhiteClock "0:00:00"]
[BlackClock "0:00:05"]

1. e4 {[%clk 0:01:41]}  c5 {[%clk 0:02:58]} 2. Nf3 {[%clk 0:01:39]}  d6 {[%clk 0:02:59]} 3. d4 {[%clk 0:01:39]}  cxd4 {[%clk 0:03:00]} 4. Nxd4 {[%clk 0:01:40]}  Nf6 {[%clk 0:03:01]} 5. Nc3 {[%clk 0:01:39]}  a6 {[%clk 0:03:01]} 6. f4 {[%clk 0:01:38]}  e5 {[%clk 0:02:30]} 7. Nf3 {[%clk 0:01:36]}  Nbd7 {[%clk 0:02:30]} 8. a4 {[%clk 0:01:36]}  Qc7 {[%clk 0:02:25]} 9. Bd3 {[%clk 0:01:36]}  Be7 {[%clk 0:02:24]} 10. O-O {[%clk 0:01:36]}  O-O {[%clk 0:02:23]} 11. Kh1 {[%clk 0:01:36]}  Nc5 {[%clk 0:02:18]} 12. Qe1 {[%clk 0:01:36]}  Re8 {[%clk 0:02:15]} 13. fxe5 {[%clk 0:01:33]}  dxe5 {[%clk 0:02:12]} 14. Qg3 {[%clk 0:01:34]}  Be6 {[%clk 0:02:05]} 15. Qxe5 {[%clk 0:01:30]}  Bd6 {[%clk 0:02:05]} 16. Qg5 {[%clk 0:01:31]}  h6 {[%clk 0:02:05]} 17. Qh4 {[%clk 0:01:29]}  Ng4 {[%clk 0:02:05]} 18. Bd2 {[%clk 0:01:05]}  Rad8 {[%clk 0:02:03]} 19. Rad1 {[%clk 0:00:54]}  Be7 {[%clk 0:01:57]} 20. Qe1 {[%clk 0:00:51]}  Nxd3 {[%clk 0:01:54]} 21. cxd3 {[%clk 0:00:50]}  Rxd3 {[%clk 0:01:41]} 22. e5 {[%clk 0:00:29]}  Qb6 {[%clk 0:00:50]} 23. Bc1 {[%clk 0:00:23]}  Rxd1 {[%clk 0:00:33]} 24. Nxd1 {[%clk 0:00:23]}  Bc4 {[%clk 0:00:33]} 25. Rg1 {[%clk 0:00:18]}  Rd8 {[%clk 0:00:32]} 26. Ne3 {[%clk 0:00:17]}  Nxe3 {[%clk 0:00:30]} 27. Bxe3 {[%clk 0:00:17]}  Qxb2 {[%clk 0:00:27]} 28. Qg3 {[%clk 0:00:18]}  Kf8 {[%clk 0:00:20]} 29. Qf4 {[%clk 0:00:15]}  Be6 {[%clk 0:00:14]} 30. Nd4 {[%clk 0:00:15]}  Qa2 {[%clk 0:00:12]} 31. Nxe6+ {[%clk 0:00:13]}  Qxe6 {[%clk 0:00:12]} 32. Rf1 {[%clk 0:00:13]}  Kg8 {[%clk 0:00:12]} 33. Qe4 {[%clk 0:00:13]}  b5 {[%clk 0:00:10]} 34. axb5 {[%clk 0:00:13]}  axb5 {[%clk 0:00:11]} 35. Bf4 {[%clk 0:00:13]}  b4 {[%clk 0:00:11]} 36. Qb7 {[%clk 0:00:12]}  h5 {[%clk 0:00:08]} 37. Bg3 {[%clk 0:00:12]}  h4 {[%clk 0:00:07]} 38. Be1 {[%clk 0:00:13]}  Rd1 {[%clk 0:00:06]} 39. Qf3 {[%clk 0:00:12]}  Qd5 {[%clk 0:00:04]} 40. Qe2 {[%clk 0:00:07]}  b3 {[%clk 0:00:05]} 41. e6 {[%clk 0:00:07]}  fxe6 {[%clk 0:00:04]} 42. Qf2 {[%clk 0:00:07]}  Bf6 {[%clk 0:00:04]} 43. Qb6 {[%clk 0:00:01]}  b2 {[%clk 0:00:05]} 44. Qb8+ {[%clk 0:00:00]}  Kh7 {[%clk 0:00:05]} 0-1


[Site "https://www.chess.com"]

[Event "Titled Tuesday Blitz May 23 Early 2023"]
[White "Dimitrov, Atanas"]
[Black "Senft, Sean"]
[WhiteFideId "2901315"]
[BlackFideId "2044960"]
[WhiteElo "2711"]
[BlackElo "1989"]
[Result "1-0"]
[Round "05"]
[TimeControl "180+2"]
[Date "2023.05.23"]
[WhiteClock "0:00:13"]
[BlackClock "0:00:00"]

1. Nf3 {[%clk 0:03:00]}  c5 {[%clk 0:02:59]} 2. c4 {[%clk 0:03:00]}  Nc6 {[%clk 0:02:59]} 3. Nc3 {[%clk 0:03:00]}  g6 {[%clk 0:02:59]} 4. b3 {[%clk 0:02:55]}  Bg7 {[%clk 0:03:00]} 5. Bb2 {[%clk 0:02:56]}  d6 {[%clk 0:03:00]} 6. e3 {[%clk 0:02:56]}  e5 {[%clk 0:03:00]} 7. Be2 {[%clk 0:02:56]}  Nge7 {[%clk 0:03:01]} 8. O-O {[%clk 0:02:56]}  O-O {[%clk 0:03:01]} 9. d3 {[%clk 0:02:53]}  Be6 {[%clk 0:03:00]} 10. Ng5 {[%clk 0:02:48]}  Qd7 {[%clk 0:02:50]} 11. Nxe6 {[%clk 0:02:47]}  Qxe6 {[%clk 0:02:50]} 12. Bf3 {[%clk 0:02:47]}  Qd7 {[%clk 0:02:23]} 13. g3 {[%clk 0:02:30]}  Rae8 {[%clk 0:02:15]} 14. Qd2 {[%clk 0:02:28]}  f5 {[%clk 0:02:12]} 15. Nd5 {[%clk 0:02:25]}  Nxd5 {[%clk 0:02:10]} 16. Bxd5+ {[%clk 0:02:25]}  Kh8 {[%clk 0:02:11]} 17. a3 {[%clk 0:02:19]}  e4 {[%clk 0:02:06]} 18. Bxg7+ {[%clk 0:02:11]}  Qxg7 {[%clk 0:02:02]} 19. Bxc6 {[%clk 0:02:09]}  bxc6 {[%clk 0:02:02]} 20. dxe4 {[%clk 0:02:10]}  fxe4 {[%clk 0:01:48]} 21. Qxd6 {[%clk 0:02:09]}  Rf6 {[%clk 0:01:46]} 22. Qxc5 {[%clk 0:01:58]}  Ref8 {[%clk 0:01:46]} 23. Rad1 {[%clk 0:01:59]}  Qh6 {[%clk 0:01:34]} 24. Qd4 {[%clk 0:01:45]}  Qh3 {[%clk 0:01:09]} 25. Qxe4 {[%clk 0:01:43]}  Rf5 {[%clk 0:01:09]} 26. Qg2 {[%clk 0:01:39]}  Qg4 {[%clk 0:01:08]} 27. Qxc6 {[%clk 0:01:00]}  Qe2 {[%clk 0:01:07]} 28. Qg2 {[%clk 0:00:58]}  Qb2 {[%clk 0:01:02]} 29. Rd4 {[%clk 0:00:52]}  Qxb3 {[%clk 0:00:59]} 30. Qe4 {[%clk 0:00:36]}  Qa2 {[%clk 0:00:32]} 31. f4 {[%clk 0:00:18]}  Qxa3 {[%clk 0:00:22]} 32. Rd7 {[%clk 0:00:18]}  R5f7 {[%clk 0:00:19]} 33. Qe5+ {[%clk 0:00:18]}  Kg8 {[%clk 0:00:19]} 34. Rfd1 {[%clk 0:00:15]}  Rxd7 {[%clk 0:00:02]} 35. Rxd7 {[%clk 0:00:16]}  Rf7 {[%clk 0:00:00]} 36. Qe8+ {[%clk 0:00:13]} 1-0


[Site "https://www.chess.com"]